bitfinex/quotes_ETHUSD_20250802
["timestamp","ask_amount","ask_price","bid_price","bid_amount"]
[1754106730350,0.0039008,3527.1,3526.7,0.4522]
[1754106731155,0.0039008,3527.1,3526.8,0.4522]
[1754106731558,0.0039008,3527.1,3526.9,0.4522]
[1754106731729,0.0039008,3527.1,3526.9,0.91926753]
[1754106733859,0.0039008,3527.1,3527.0,0.4522]
[1754106734541,0.0039008,3527.1,3526.9,0.60866753]
[1754106735557,0.0039008,3527.1,3527.0,0.4522]
[1754106735759,0.0039008,3527.1,3527.0,0.4805527]
[1754106736077,0.001,3528.0,3527.1,3.0]
[1754106736233,1.0581,3528.0,3527.3,3.0]
[1754106736568,1.0581,3528.0,3527.5,0.1416]
[1754106736865,0.1426,3528.0,3527.5,0.1416]
[1754106737029,0.5753,3528.0,3527.5,0.1416]
[1754106737230,1.0581,3528.0,3527.5,0.1416]
[1754106737632,0.4327,3527.9,3527.5,0.1416]
[1754106737975,0.9155,3527.9,3527.5,0.1416]
[1754106738971,0.4327,3527.8,3527.5,0.1416]
[1754106739357,0.1426,3528.0,3527.5,0.1416]
[1754106739358,0.4828,3527.7,3527.5,0.1416]
[1754106739597,0.9155,3527.6,3527.3,0.1416]
[1754106739866,0.9155,3527.5,3526.7,0.4522]
[1754106740033,0.1416,3527.4,3526.9,0.1416]
[1754106740234,0.9155,3527.3,3526.9,0.1416]
[1754106740458,0.9155,3527.2,3526.9,0.1416]
[1754106740791,0.4327,3527.2,3526.9,0.1416]
[1754106740997,0.6244,3527.4,3526.9,0.1416]
[1754106741334,0.9155,3527.3,3526.2,0.4522]
[1754106741531,0.1416,3527.0,3526.5,0.1416]
[1754106741765,0.9149,3526.9,3526.5,0.1416]
[1754106742336,0.4628,3526.9,3526.5,0.1416]
[1754106742671,0.9149,3526.8,3526.5,0.1416]
[1754106743160,0.4521,3526.8,3526.5,0.1416]
[1754106744474,0.6044,3527.0,3526.5,0.1416]
[1754106744840,0.1416,3527.0,3526.5,0.6104]
[1754106745035,1.0565,3527.0,3526.5,0.1416]
[1754106745236,0.1416,3527.0,3526.8,12.17033598]
[1754106745439,0.4521,3527.6,3526.9,4.8743136]
[1754106745799,0.1416,3527.6,3526.9,4.8743136]
[1754106745950,0.1416,3527.6,3526.9,4.7327136]
[1754106746151,0.1416,3527.6,3527.1,0.1416]
[1754106746784,1.0565,3527.6,3527.1,0.1416]
[1754106747483,1.0565,3527.6,3527.1,2.26798496]
[1754106747678,0.5937,3527.6,3527.1,2.26798496]
[1754106748355,0.6044,3527.6,3527.1,1.79918496]
[1754106748556,0.9149,3527.5,3527.1,0.1416]
[1754106748893,0.001,3528.0,3526.6,0.4688]
[1754106748894,0.9149,3527.4,3526.6,0.4688]
[1754106749563,0.001,3528.0,3526.4,3.0]
[1754106749763,0.9149,3527.3,3526.4,3.0]
[1754106749992,0.9149,3527.3,3526.5,2.0081136]
[1754106750194,0.9149,3527.2,3526.5,2.0081136]
[1754106750364,0.4521,3527.2,3526.5,2.4769136]
[1754106750759,0.4521,3527.8,3526.5,2.0081136]
[1754106750962,0.9149,3527.8,3527.0,3.0]
[1754106751164,0.9149,3527.8,3527.1,1.5170336]
[1754106751582,0.9149,3527.7,3527.0,3.0]
[1754106751782,0.02947072,3528.0,3527.0,3.0]
[1754106752067,0.9149,3527.9,3527.0,3.0]
[1754106752263,0.02947072,3528.0,3527.0,3.0]
[1754106752585,0.9149,3527.8,3527.0,3.0]
[1754106752785,0.9149,3527.7,3527.0,4.5170336]
[1754106752981,0.9149,3527.7,3526.9,12.17033598]
[1754106753291,0.9149,3527.6,3526.9,12.17033598]
[1754106753993,0.02947072,3528.0,3526.9,12.17033598]
[1754106754211,0.9149,3527.5,3526.4,3.0]
[1754106754415,0.55,3527.9,3526.4,3.0]
[1754106754714,0.9149,3527.4,3526.5,0.49715672]
[1754106755077,0.9149,3527.3,3526.4,3.0]
[1754106755276,0.4521,3527.5,3526.5,0.4688]
[1754106755594,0.4628,3527.4,3526.5,0.4688]
[1754106756107,0.4521,3527.3,3526.5,0.4688]
[1754106756506,0.4628,3527.2,3526.5,0.4688]
[1754106758216,0.4628,3527.2,3526.4,4.9613336]
[1754106758418,0.4521,3527.1,3526.4,4.9613336]
[1754106758600,0.1416,3526.9,3526.4,5.1029336]
[1754106758770,0.4521,3526.8,3526.5,1.72732696]
[1754106759410,0.1416,3526.9,3526.4,0.1416]
[1754106759411,0.9149,3526.7,3526.4,0.1416]
[1754106759705,0.9149,3526.6,3525.8,3.4688]
[1754106760011,0.9149,3526.6,3526.3,0.1416]
[1754106760207,0.4521,3526.5,3526.3,0.1416]
[1754106760371,0.1416,3526.9,3526.3,3.1416]
[1754106760571,0.1416,3526.9,3526.3,4.7196736]
[1754106760991,0.6044,3526.9,3526.3,4.7196736]
[1754106761197,0.4521,3526.8,3526.5,0.002]
[1754106761509,0.9149,3526.8,3526.5,0.002]
[1754106761707,0.9149,3526.7,3526.5,0.002]
[1754106763008,0.4521,3526.6,3526.5,0.002]
[1754106763173,0.9149,3526.6,3526.5,0.002]
[1754106763884,1.0565,3526.6,3526.5,0.002]
[1754106765315,0.1416,3526.6,3526.5,0.002]
[1754106765510,0.1416,3526.6,3526.5,1.9880336]
[1754106765676,0.001,3527.2,3526.5,1.9880336]
[1754106765988,0.1416,3527.1,3526.6,0.1416]
[1754106766307,1.0565,3527.1,3526.6,0.1416]
[1754106766518,1.0565,3527.1,3526.6,3.65456336]
[1754106767410,0.4521,3527.0,3526.6,3.65456336]
[1754106767899,0.9149,3526.9,3526.6,3.65456336]
[1754106768094,0.4521,3526.8,3526.6,3.1416]
[1754106768308,0.4628,3526.8,3526.6,3.1416]
[1754106768519,0.4521,3526.7,3526.6,3.1416]
[1754106768680,0.9149,3526.7,3526.6,3.1416]
[1754106769014,0.9149,3526.7,3526.6,3.0]
[1754106769222,0.9149,3526.7,3526.5,0.002]
[1754106769385,1.0565,3526.6,3526.5,0.002]
[1754106770377,0.9149,3527.0,3526.5,0.002]
[1754106770582,0.1416,3526.8,3526.5,0.002]
[1754106770995,0.9149,3526.7,3526.5,0.002]
[1754106771382,0.9149,3526.6,3526.5,0.002]
[1754106771710,0.4521,3526.6,3526.5,0.002]
[1754106772235,0.1416,3526.8,3526.5,0.4819]
[1754106772694,0.1416,3526.8,3526.5,0.002]
[1754106773692,0.4553,3526.7,3526.5,0.002]
[1754106773910,0.1416,3526.6,3526.5,0.002]
[1754106774318,1.076,3526.6,3526.5,0.002]
[1754106775409,0.4553,3526.6,3526.5,0.002]
[1754106775981,0.1416,3526.7,3526.5,0.002]
[1754106777115,0.4553,3526.6,3526.5,0.002]
[1754106777824,0.6207,3526.7,3526.5,0.002]
[1754106778029,0.1416,3526.7,3526.5,0.002]
[1754106778332,1.485,3526.6,3526.5,0.002]
[1754106780289,5.3674,3526.6,3526.5,0.002]
[1754106781214,0.9344,3526.6,3526.5,0.002]
[1754106781398,4.433,3526.6,3526.5,0.002]
[1754106781599,4.5726,3526.7,3526.5,0.002]
[1754106782731,5.0279,3526.7,3526.5,0.002]
[1754106783307,5.507,3526.7,3526.5,0.002]
[1754106784228,0.1416,3526.7,3526.5,0.002]
[1754106784405,4.428,3526.6,3526.5,0.002]
[1754106785257,0.001,3527.1,3526.5,1.99736318]
[1754106785399,4.427,3527.0,3526.5,2.13896318]
[1754106785720,4.427,3527.0,3526.7,0.1416]
[1754106788611,4.8823,3527.0,3526.7,0.1416]
[1754106789130,0.4553,3526.9,3526.7,0.1416]
[1754106789713,0.9344,3526.9,3526.7,0.1416]
[1754106790022,0.9344,3526.8,3526.7,0.1416]
[1754106790197,0.9344,3526.8,3526.5,0.002]
[1754106790396,1.076,3526.7,3526.5,0.002]
[1754106790603,4.42,3526.6,3526.5,0.002]
[1754106790818,5.3544,3526.6,3526.5,0.002]
[1754106791914,4.42,3526.6,3526.5,0.002]
[1754106792117,4.419,3526.6,3526.5,0.002]
[1754106794643,1.076,3526.9,3526.5,0.002]
[1754106794854,4.417,3526.8,3526.5,0.03035672]
[1754106795020,5.3514,3526.8,3526.5,0.002]
[1754106795354,4.8723,3526.7,3526.5,0.002]
[1754106795709,0.4553,3526.7,3526.5,0.002]
[1754106795936,0.4791,3526.7,3526.5,0.002]
[1754106796133,0.4553,3526.6,3526.5,0.002]
[1754106797640,0.9344,3526.6,3526.5,0.002]
[1754106800455,4.5586,3526.8,3526.5,0.002]
[1754106801115,0.4553,3526.7,3526.5,0.002]
[1754106801317,0.9344,3526.7,3526.5,0.002]
[1754106803546,0.4478,3526.6,3526.5,0.002]
[1754106805060,4.417,3526.8,3526.5,12.17233598]
[1754106805232,1.0559,3527.0,3526.5,12.31393598]
[1754106805436,4.405,3526.9,3526.6,3.0]
[1754106805648,4.8528,3526.9,3526.6,3.0]
[1754106805825,0.4478,3526.8,3526.6,3.0]
[1754106806034,0.9143,3526.8,3526.6,3.0]
[1754106806239,0.9143,3526.8,3526.6,4.70317796]
[1754106807251,0.4478,3526.7,3526.6,4.70317796]
[1754106808158,4.405,3526.9,3526.6,4.70317796]
[1754106808521,5.3193,3526.9,3526.6,4.70317796]
[1754106808763,0.9143,3526.8,3526.6,4.70317796]
[1754106809459,0.4665,3526.8,3526.6,3.0]
[1754106809649,0.4478,3526.7,3526.6,3.0]
[1754106810268,0.4665,3526.8,3526.6,3.0]
[1754106810563,0.9143,3526.8,3526.6,3.0]
[1754106811057,0.4478,3526.7,3526.6,3.0]
[1754106811264,0.9143,3526.7,3526.6,3.0]
[1754106812322,0.4478,3526.7,3526.6,3.0]
[1754106812647,0.9143,3526.7,3526.5,0.1436]
[1754106812850,4.405,3526.9,3526.5,0.1436]
[1754106813048,0.9143,3526.6,3526.5,0.1436]
[1754106815247,0.4478,3526.6,3526.5,0.1436]
[1754106816141,0.9143,3526.6,3526.5,0.002]
[1754106816340,5.84123,3526.6,3526.5,0.002]
[1754106816523,5.3093,3526.6,3526.5,0.002]
[1754106818425,5.33777072,3526.6,3526.5,0.002]
[1754106820435,5.3093,3526.6,3526.5,0.002]
[1754106820637,5.33777072,3526.6,3526.5,0.002]
[1754106820859,6.15509169,3526.6,3526.5,0.002]
[1754106821064,6.12662097,3526.6,3526.5,0.002]
[1754106822105,9.51221332,3526.6,3526.5,0.002]
[1754106822600,12.51221332,3526.6,3526.5,0.002]
[1754106824591,42.51221332,3526.6,3526.5,0.002]
[1754106824892,44.21521332,3526.6,3526.5,0.002]
[1754106825592,6.98462097,3526.6,3526.5,0.002]
[1754106825761,5.3043,3526.6,3526.5,0.002]
[1754106825956,0.9143,3526.6,3526.5,0.002]
[1754106826190,5.3063,3526.6,3526.5,0.002]
[1754106826977,5.4479,3526.6,3526.5,0.002]
[1754106827785,5.4459,3526.6,3526.5,0.002]
[1754106827999,1.60049,3526.6,3526.5,0.002]
[1754106828183,5.4459,3526.6,3526.5,0.002]
[1754106830779,0.1416,3526.6,3526.5,0.002]
[1754106830974,4.5286,3526.6,3526.5,0.4571]
[1754106831176,4.5286,3526.6,3526.5,0.002]
[1754106831376,0.001,3527.1,3526.5,0.4571]
[1754106831597,4.389,3527.0,3526.7,0.1416]
[1754106831786,4.389,3527.0,3526.8,0.4875]
[1754106831975,0.001,3527.1,3526.8,0.4875]
[1754106832178,4.389,3527.0,3526.8,0.4875]
[1754106832682,4.389,3527.0,3526.7,0.1416]
[1754106832906,4.389,3527.0,3526.9,0.4875]
[1754106833497,4.388,3527.0,3526.9,0.4875]
[1754106835327,0.001,3527.1,3526.9,0.4875]
[1754106835515,4.385,3527.0,3526.9,0.4875]
[1754106836514,0.001,3527.1,3526.9,0.4875]
[1754106836687,4.385,3527.0,3526.9,0.4875]
[1754106838992,4.385,3527.0,3526.7,0.1416]
[1754106839192,4.385,3527.0,3526.8,0.4875]
[1754106839594,0.001,3527.1,3526.9,0.4875]
[1754106839891,0.001,3527.1,3527.0,1.5696307]
[1754106840322,0.001,3527.2,3527.0,2.0854834]
[1754106840523,0.001,3527.2,3527.1,0.6291]
[1754106841025,4.335,3527.9,3527.1,0.4875]
[1754106841230,4.335,3527.9,3527.3,3.0]
[1754106841425,4.335,3527.9,3527.4,2.06845527]
[1754106841637,4.335,3527.9,3527.5,0.1416]
[1754106842010,4.335,3527.9,3527.6,0.4875]
[1754106842526,0.001,3528.0,3527.8,0.1416]
[1754106842724,0.001,3528.0,3527.9,1.76845527]
[1754106843131,0.001,3528.0,3527.9,1.93840074]
[1754106843298,0.001,3528.0,3527.9,1.91005527]
[1754106845202,0.001,3528.0,3527.9,1.42255527]
[1754106845404,0.001,3528.0,3527.1,0.4875]
[1754106845405,0.916,3528.0,3527.1,0.4875]
[1754106845711,0.915,3527.9,3527.5,0.1416]
[1754106846237,0.915,3527.8,3527.5,0.1416]
[1754106846438,0.915,3527.7,3527.5,0.1416]
[1754106846638,0.915,3527.6,3527.2,0.1416]
[1754106847005,0.1416,3527.7,3527.2,0.1416]
[1754106847223,0.915,3527.5,3527.2,0.1416]
[1754106848038,0.6177,3527.8,3527.2,0.6291]
[1754106849100,0.94347072,3527.7,3527.2,0.1416]
[1754106849307,0.915,3527.6,3526.8,3.0]
[1754106849508,0.1416,3527.4,3526.9,0.1416]
[1754106849709,0.915,3527.3,3526.9,0.1416]
[1754106850416,0.915,3527.3,3526.9,0.16995351]
[1754106850643,0.4389,3527.3,3526.9,0.1416]
[1754106850829,0.4389,3527.3,3527.0,1.7327148]
[1754106852752,0.4761,3527.3,3527.0,1.7327148]
[1754106853059,0.1416,3527.1,3526.5,0.1436]
[1754106854250,0.915,3527.2,3526.5,12.18245271]
[1754106854421,1.0566,3527.2,3526.7,0.1416]
[1754106854623,0.4389,3527.1,3526.7,1.42275527]
[1754106854825,0.915,3527.1,3526.5,0.002]
[1754106855254,0.915,3527.0,3526.5,0.002]
[1754106855736,0.915,3526.9,3526.5,0.002]
[1754106856141,0.915,3526.8,3526.5,0.002]
[1754106856654,0.915,3526.7,3526.5,0.002]
[1754106857132,0.57847072,3527.3,3526.5,0.002]
[1754106857330,0.915,3526.6,3526.5,0.002]
[1754106863239,0.4389,3526.6,3526.5,0.002]
[1754106863765,0.8946,3526.6,3526.5,0.002]
[1754106864568,0.55,3526.5,3526.1,0.002]
[1754106864752,0.58206,3526.4,3526.1,0.002]
[1754106864958,0.1416,3526.2,3526.1,0.002]
[1754106865564,1.069,3526.2,3526.1,0.002]
[1754106867489,0.1416,3526.2,3526.1,0.002]
[1754106868154,0.6133,3526.2,3526.1,0.002]
[1754106868355,1.069,3526.2,3526.1,0.002]
[1754106868558,0.1416,3526.2,3526.1,0.002]
[1754106870315,1.069,3526.2,3526.1,0.002]
[1754106871307,1.61624707,3526.2,3526.1,0.002]
[1754106872390,1.64471779,3526.2,3526.1,0.002]
[1754106872798,1.61624707,3526.2,3526.1,0.002]
[1754106873107,1.64471779,3526.2,3526.1,0.002]
[1754106873509,1.61624707,3526.2,3526.1,0.002]
[1754106876400,1.069,3526.2,3526.1,0.002]
[1754106879791,1.64747072,3526.2,3526.1,0.002]
[1754106879996,1.619,3526.2,3526.1,0.002]
[1754106880733,1.069,3526.2,3526.1,0.002]
[1754106881046,5.438,3526.2,3526.1,0.002]
[1754106881328,6.26821635,3526.2,3526.1,0.002]
[1754106884409,5.438,3526.2,3526.1,0.002]
[1754106886446,5.2964,3526.2,3526.1,0.002]
[1754106887128,5.32487072,3526.2,3526.1,0.002]
[1754106888434,5.2964,3526.2,3526.1,0.002]
[1754106893104,4.369,3526.2,3526.1,0.002]
[1754106896421,4.5106,3526.2,3526.1,0.002]
[1754106897241,4.5006,3526.2,3526.1,0.4826]
[1754106901369,4.5006,3526.2,3526.1,0.002]
[1754106902074,4.4986,3526.2,3526.1,0.002]
[1754106904379,0.1416,3526.2,3526.1,0.002]
[1754106904579,4.354,3526.2,3526.1,0.4826]
[1754106904888,4.354,3526.2,3526.1,1.65529549]
[1754106905046,4.354,3526.2,3526.1,1.65299549]
[1754106908653,0.1426,3526.5,3526.1,1.65299549]
[1754106908853,0.1426,3526.5,3526.4,8.21705493]
[1754106910585,0.001,3526.5,3526.4,8.69995493]
[1754106910766,0.001,3526.5,3526.4,9.82648997]
[1754106912790,0.001,3526.5,3526.4,12.82648997]
[1754106916082,0.001,3526.5,3526.4,12.34588997]
[1754106917400,0.001,3526.5,3526.4,12.82648997]
[1754106919015,0.001,3526.5,3526.4,12.34588997]
[1754106932435,0.001,3526.5,3526.4,12.34788997]
[1754106934689,0.4292,3526.5,3526.4,12.34788997]
[1754106938093,0.001,3526.5,3526.4,12.34788997]
[1754106939028,0.8978,3526.5,3526.4,12.34788997]
[1754106939194,0.8978,3526.5,3526.4,11.36065493]
[1754106941614,0.4292,3526.5,3526.4,11.36065493]
[1754106941808,0.001,3526.5,3526.4,11.36065493]
[1754106944511,0.001,3526.5,3526.4,15.70565493]
[1754106944994,0.1416,3527.4,3527.3,8.21705493]
[1754106945592,0.8968,3527.4,3527.3,8.21705493]
[1754106945833,4.345,3527.5,3527.3,8.21705493]
[1754106946047,4.345,3527.5,3527.3,9.18036042]
[1754106946249,0.8968,3527.7,3527.3,9.18036042]
[1754106946415,0.8968,3527.7,3527.3,9.65236042]
[1754106946612,0.4282,3527.7,3527.3,10.50430042]
[1754106946857,0.4282,3527.7,3527.6,0.1416]
[1754106947555,4.8146,3527.9,3527.6,0.1416]
[1754106947751,4.8146,3527.9,3527.8,8.21705493]
[1754106947915,5.2428,3527.9,3527.8,8.21705493]
[1754106950216,0.001,3527.9,3527.8,8.21705493]
[1754106950415,0.001,3527.9,3527.8,9.62902042]
[1754106951343,0.001,3527.9,3527.8,10.10102042]
[1754106951543,0.001,3528.0,3527.8,10.10102042]
[1754106951544,0.001,3528.0,3527.9,3.0]
[1754106951849,0.001,3528.0,3527.9,7.85124547]
[1754106952054,0.001,3528.0,3527.9,9.57092659]
[1754106952250,0.001,3528.0,3527.9,9.56862659]
[1754106952631,0.001,3528.0,3527.9,10.42035159]
[1754106953045,0.001,3528.3,3528.2,11.21705493]
[1754106953247,0.001,3528.3,3528.2,17.42502558]
[1754106953557,0.001,3528.3,3528.2,18.04322558]
[1754106954634,0.001,3528.3,3528.2,17.56662558]
[1754106955555,0.001,3528.3,3528.2,3.993257]
[1754106955736,0.9369,3528.3,3527.6,4.343]
[1754106955936,0.96437072,3528.2,3527.6,0.993511]
[1754106956139,1.0775,3528.1,3527.6,0.993511]
[1754106956458,0.9359,3528.0,3527.6,3.1416]
[1754106956627,0.9359,3527.9,3527.6,3.1416]
[1754106956823,0.9359,3527.8,3527.6,3.1416]
[1754106957024,0.9359,3527.7,3527.6,0.1416]
[1754106957324,0.9359,3527.7,3527.6,3.1416]
[1754106960069,0.1416,3528.1,3527.6,3.1416]
[1754106960070,0.9359,3528.0,3527.6,4.79695659]
[1754106960358,0.1426,3528.3,3527.9,8.21705493]
[1754106960730,0.001,3528.3,3527.6,0.1416]
[1754106960931,0.1416,3528.1,3527.6,4.4846]
[1754106961130,0.1416,3528.1,3527.6,0.1416]
[1754106961131,0.9359,3528.0,3527.6,0.1416]
[1754106961328,0.9359,3527.9,3527.6,0.1416]
[1754106961532,0.9359,3527.8,3527.6,0.1416]
[1754106961742,0.001,3528.3,3527.5,3.0]
[1754106961945,0.9359,3527.7,3527.5,3.0]
[1754106962151,0.9359,3527.6,3526.8,8.21705493]
[1754106962468,0.1416,3527.1,3526.6,0.1416]
[1754106962667,0.9359,3527.4,3526.8,8.21705493]
[1754106962871,1.0775,3527.4,3527.3,8.21705493]
[1754106964142,0.4746,3528.3,3527.3,8.21705493]
[1754106964443,0.1416,3528.1,3527.9,8.21705493]
[1754106964643,0.9359,3528.0,3527.9,8.21705493]
[1754106964878,0.4623,3528.0,3527.9,8.21705493]
[1754106965368,0.9359,3528.0,3527.9,8.21705493]
[1754106965571,0.001,3528.3,3527.9,9.19452042]
[1754106965769,0.9359,3528.2,3527.9,9.19452042]
[1754106967499,0.9359,3528.2,3527.9,8.35865493]
[1754106969083,0.4736,3528.2,3527.9,8.35865493]
[1754106969381,0.4623,3528.1,3527.9,8.35865493]
[1754106972055,0.9359,3528.1,3527.9,8.35865493]
[1754106975028,0.9359,3528.0,3527.7,8.21705493]
[1754106975197,0.1426,3528.3,3527.8,0.1416]
[1754106975368,0.9359,3527.9,3527.8,0.1416]
[1754106976402,0.4736,3528.1,3527.8,1.41176549]
[1754106976605,0.1426,3528.3,3528.0,8.21705493]
[1754106976965,0.9359,3528.2,3528.0,8.21705493]
[1754106977180,0.4736,3528.2,3528.0,8.21705493]
[1754106977390,0.4623,3528.1,3528.0,8.21705493]
[1754106977777,0.9359,3528.1,3528.0,8.21705493]
[1754106984409,0.001,3528.3,3528.1,3.0]
[1754106984574,0.001,3528.4,3528.2,7.51094306]
[1754106984773,0.001,3528.4,3528.2,4.9724]
[1754106984973,0.001,3528.4,3528.2,4.51094306]
[1754106985200,0.1416,3529.3,3528.3,2.14388635]
[1754106985432,0.4699,3529.9,3529.0,8.21705493]
[1754106985732,0.4711,3529.8,3529.7,8.21705493]
[1754106986221,0.941,3529.8,3529.7,8.21705493]
[1754106987203,0.4699,3529.8,3529.7,8.21705493]
[1754106988498,4.4826,3530.1,3529.7,9.13806272]
[1754106988499,0.1416,3530.1,3529.7,9.13806272]
[1754106988697,0.941,3530.0,3529.7,0.92100779]
[1754106988902,0.941,3530.0,3529.6,0.1416]
[1754106989104,0.941,3529.9,3529.6,0.1416]
[1754106989609,0.4711,3529.8,3529.6,0.1416]
[1754106989906,0.1416,3529.7,3529.3,3.0]
[1754106990300,0.941,3529.6,3529.3,3.0]
[1754106990496,0.941,3529.5,3529.3,3.0]
[1754106990695,0.4699,3529.4,3529.2,0.1416]
[1754106990887,0.4699,3529.4,3529.2,1.79661619]
[1754106991095,1.0826,3529.7,3529.2,1.82495122]
[1754106991294,0.941,3529.6,3529.4,8.21705493]
[1754106992180,0.4699,3529.6,3529.4,8.21705493]
[1754106992808,0.941,3529.6,3529.4,8.21705493]
[1754106994612,0.1416,3529.7,3529.4,8.21705493]
[1754106994613,0.941,3529.5,3529.4,8.21705493]
[1754106995588,0.4699,3529.5,3529.4,8.21705493]
[1754106995989,0.6127,3529.7,3529.4,8.21705493]
[1754106996227,0.941,3529.6,3529.4,9.95242204]
[1754106996422,0.941,3529.5,3529.2,0.1416]
[1754106996610,0.941,3529.5,3529.1,11.21705493]
[1754106996611,0.941,3529.4,3529.1,11.35865493]
[1754106996814,0.1416,3529.6,3529.1,11.35865493]
[1754106997002,0.941,3529.5,3529.1,11.35865493]
[1754106997198,0.941,3529.4,3529.1,11.35865493]
[1754106997404,0.941,3529.3,3529.1,11.35865493]
[1754106997722,0.941,3529.2,3529.1,11.35865493]
[1754106999602,0.4711,3529.5,3529.1,13.01357502]
[1754106999806,0.941,3529.5,3529.1,13.01357502]
[1754107001699,0.001,3529.6,3529.2,0.51583503]
[1754107001895,0.001,3529.6,3529.5,8.21705493]
[1754107002828,0.001,3529.6,3529.5,9.53557042]
[1754107004936,0.001,3529.6,3529.5,12.53557042]
[1754107006406,0.4709,3529.6,3529.5,12.53557042]
[1754107009650,0.942,3529.6,3529.5,12.53557042]
[1754107012133,0.4709,3529.6,3529.5,12.53557042]
[1754107012332,0.001,3529.6,3529.5,12.53557042]
[1754107013316,0.001,3529.6,3529.5,13.00367042]
[1754107014853,0.001,3529.6,3529.5,12.53557042]
[1754107019589,0.4465,3529.6,3529.5,12.53557042]
[1754107021170,0.001,3529.6,3529.5,12.53557042]
[1754107022361,0.9054,3529.6,3529.5,12.53557042]
[1754107023840,0.4465,3529.6,3529.5,12.53557042]
[1754107024241,0.4465,3529.6,3529.4,0.1416]
[1754107024447,0.4465,3529.6,3528.0,8.21905493]
[1754107024448,5.26887072,3529.5,3528.0,8.21905493]
[1754107024694,0.55,3529.4,3528.0,8.21905493]
[1754107024975,1.4544,3529.4,3528.1,3.0]
[1754107025139,4.336,3529.3,3528.8,8.21705493]
[1754107025339,0.9044,3529.2,3528.8,8.21705493]
[1754107025547,0.9044,3529.5,3529.1,8.21705493]
[1754107025753,0.001,3529.6,3529.1,8.21705493]
[1754107025754,0.9044,3529.4,3529.1,8.21705493]
[1754107025961,0.9044,3529.3,3529.1,8.21705493]
[1754107026159,0.9044,3529.3,3529.1,9.03876042]
[1754107026462,0.001,3529.6,3529.1,9.03876042]
[1754107026662,0.001,3529.6,3529.5,8.21705493]
[1754107026861,0.4599,3529.6,3529.3,3.0]
[1754107027277,0.4589,3529.5,3529.3,3.0]
[1754107027609,0.9044,3529.5,3529.3,3.0]
[1754107027946,0.9044,3529.4,3529.2,8.21705493]
[1754107028253,0.9044,3529.3,3529.2,8.21705493]
[1754107028846,0.9044,3529.3,3528.8,3.0]
[1754107029081,0.9044,3529.2,3528.5,12.15637454]
[1754107029273,0.001,3529.6,3528.5,12.15637454]
[1754107029274,0.4455,3529.4,3528.6,0.4681]
[1754107029466,0.9044,3529.4,3528.6,3.4681]
[1754107029670,0.001,3529.6,3528.8,3.0]
[1754107029870,0.001,3529.6,3528.9,1.08041]
[1754107029871,0.9054,3529.6,3528.9,1.08041]
[1754107030071,0.001,3529.6,3528.9,1.08041]
[1754107030250,0.9044,3529.5,3528.9,1.08041]
[1754107030449,0.9044,3529.4,3528.9,1.08041]
[1754107030651,0.9044,3529.3,3528.9,1.08041]
[1754107030852,0.4589,3529.3,3529.0,0.888451]
[1754107031079,0.4455,3529.2,3529.0,0.888451]
[1754107031272,0.4455,3529.1,3529.0,0.888451]
[1754107031460,0.9044,3529.3,3528.8,3.0]
[1754107031660,0.4455,3529.3,3528.9,0.4681]
[1754107032080,0.4455,3529.3,3528.8,3.0]
[1754107032385,0.4455,3529.2,3528.8,3.0]
[1754107032680,0.4455,3529.2,3528.9,0.78041]
[1754107033883,0.9044,3529.2,3528.9,0.78041]
[1754107034055,0.9044,3529.1,3528.9,0.78041]
[1754107034553,0.9044,3529.1,3529.0,0.1416]
[1754107034772,0.4589,3529.1,3529.0,0.1416]
[1754107034980,0.4589,3529.1,3529.0,0.967401]
[1754107035387,0.9044,3529.1,3529.0,0.967401]
[1754107036386,0.4589,3529.4,3529.0,0.967401]
[1754107036572,0.1416,3529.5,3529.0,0.967401]
[1754107036778,0.9044,3529.3,3529.0,0.967401]
[1754107037089,0.4455,3529.2,3529.0,0.967401]
[1754107037290,0.9044,3529.2,3529.1,0.3967401]
[1754107039857,0.6005,3529.5,3529.1,0.3967401]
[1754107040059,0.9044,3529.4,3529.0,0.1416]
[1754107040281,0.001,3529.6,3529.0,0.1416]
[1754107040485,1.047,3529.6,3529.0,0.6097]
[1754107040665,0.9044,3529.5,3529.0,0.1416]
[1754107041291,0.9044,3529.4,3529.0,0.1416]
[1754107041589,0.934,3529.3,3529.0,0.50257]
[1754107041796,0.4733,3529.2,3529.0,0.50257]
[1754107043003,0.1426,3529.6,3529.0,0.50257]
[1754107043191,1.0766,3529.6,3529.0,0.50257]
[1754107043386,0.934,3529.5,3529.0,0.50257]
[1754107043891,0.934,3529.4,3529.0,0.50257]
[1754107044203,0.934,3529.3,3529.0,0.50257]
[1754107044368,0.4607,3529.3,3529.0,0.50257]
[1754107044691,0.4733,3529.2,3529.0,0.50257]
[1754107048415,0.001,3529.6,3529.1,3.4875]
[1754107048566,0.001,3529.6,3529.2,2.13047948]
[1754107048766,0.001,3529.6,3529.5,11.33893989]
[1754107049397,0.001,3529.6,3529.5,11.82643989]
[1754107049709,0.001,3529.6,3529.5,11.33893989]
[1754107050376,0.001,3529.6,3529.5,11.82643989]
[1754107050578,0.001,3529.6,3529.5,13.17054832]
[1754107054103,0.001,3529.6,3529.5,17.50654832]